{"text_format":"1","workbook":"xlsx","n_sheets":4,"sheets":["Orientation","Bilan","données","Menu"],"not_rendered":{"charts":0,"images":1,"macros":1,"external_links":0,"defined_names":40,"comments":0,"pivot_tables":0},"unopened":[],"bounds":{"document_bytes":16777216,"sheet_cells":100000,"rows_first":2000,"rows_last":500,"rows_between":2000,"halvings":0,"cell_chars":16384,"cell_head_chars":4096},"cells_cut":0,"cells_raw":0,"read":"whole","date_system":"1900"}

{"sheet":"Orientation","index":0,"n_rows":56,"n_cols":5,"rows_kept":56,"cut":false,"hidden":false,"merged":[[55,1,60,4],[1,1,1,4],[2,1,2,4],[49,1,50,4],[52,1,53,4],[18,0,18,4],[8,0,8,4],[33,0,33,4],[46,1,47,4],[40,1,43,4]]}
[]
[null,"FICHE DE LIAISON INSERTION 2024"]
[null,"Partie à compléter par le prescipteur"]
[]
["Non surligné :","saisie libre"]
[]
["Surligné bleu :","menu déroulant - merci de respecter les items proposés",null,null,2024]
[]
["PERSONNE ORIENTEE"]
[]
["Civilité ",null,null,"Commune de résidence  "]
[]
["Nom ",null,null,"N° tél "]
[]
["Prénom ",null,null,"Email "]
[]
["Né(é) le ",null,null,"Allocataire RSA \n*** INFORMATION INDISPENSABLE ***"]
[]
["PRESCRIPTEUR"]
[]
["Si le prescipteur est une CSS, merci de préciser :"]
["CSS ",null,null,"Site  CSS"]
[]
["Si le prescipteur n'est pas une CSS, merci de préciser :",null,null,"             En cas d'ALI, merci de préciser :"]
["Structure hors CSS",null,null,"ALI-territoire"]
[]
[]
["Nom",null,null,"N° tél "]
[]
["Prénom ",null,null,"Email"]
[]
["Fonction (CSS uniquement)"]
[]
["CHOIX DE L'ACTION/ORIENTATION"]
[]
["Date de la demande",null,null,"Thématique"]
[]
[null,null,null,"Nom de l'association"]
[]
[]
["Freins identifiés "]
[]
[]
[]
["Merci de renseigner au moins un objectif"]
[]
["Objectif 1"]
[]
[]
["Objectif 2"]
[]
[]
["Objectif 3"]
[]
[]
["Commentaires"]

{"sheet":"Bilan","index":1,"n_rows":51,"n_cols":4,"rows_kept":51,"cut":false,"hidden":false,"merged":[[44,0,45,2],[44,3,45,3],[51,0,59,3],[1,1,1,3],[2,1,2,3],[23,1,23,3],[47,0,48,2],[47,3,48,3],[31,0,31,2],[11,0,11,3],[21,0,21,3],[29,0,29,3],[39,0,39,3],[41,0,42,2],[41,3,42,3]]}
[]
[null,"FICHE DE LIAISON INSERTION 2024"]
[null,"Partie à compléter par l'association"]
[]
["Non surligné :","saisie libre"]
[]
["Surligné gris :","données préremplies, ne pas saisir"]
[]
["Surligné bleu :","menu déroulant - merci de respecter les items proposés"]
[]
[]
["PERSONNE ORIENTEE"]
[]
["Civilité ",{"$f":"Orientation!B11","v":0},"Commune de résidence  ",{"$f":"Orientation!E11","v":0}]
[]
["Nom ",{"$f":"Orientation!B13","v":0},"N° tél ",{"$f":"Orientation!E13","v":0}]
[]
["Prénom ",{"$f":"Orientation!B15","v":0},"Email ",{"$f":"Orientation!E15","v":0}]
[]
["Né(é) le ",{"$f":"Orientation!B17","v":"00:00:00"},"Allocataire RSA ",{"$f":"Orientation!E17","v":0}]
[]
["L'ASSOCIATION "]
[]
["Nom de l'association ",{"$f":"Orientation!E38","v":0}]
[]
["Nom/Prénom référent",null,"Fonction référent "]
[]
["Email référent",null,"N° tél référent"]
[]
["BILAN DE L'ORIENTATION"]
[]
["Si la prise en charge de l'usager n'a pas eu lieu, précisez la raison :"]
[]
[null,null,"Date de la demande",{"$f":"Orientation!B36","v":"00:00:00"}]
[]
["Date de début de l'action",null,"Date de fin de l'action"]
[]
["Nombre d'heures prévues",null,"Nombre d'heures réalisées"]
[]
["Atteinte des objectifs"]
["Objectif 1",null,null,"Evaluation"]
[{"$f":"Orientation!B47","v":0}]
[]
["Objectif 2",null,null,"Evaluation"]
[{"$f":"Orientation!B50","v":0}]
[]
["Objectif 3",null,null,"Evaluation"]
[{"$f":"Orientation!B53","v":0}]
[]
[]
["Commentaires"]

{"sheet":"données","index":2,"n_rows":2,"n_cols":39,"rows_kept":2,"cut":false,"hidden":true,"merged":[]}
["Civilite","Nom_U","Prenom_U","Date_naissance","Commune_residence","Allocataire_RSA","Email_U","Tel_U","CSS","Site","Autre_prescripteur","ALI_territoire","Nom_prescr","Prenom_prescr","Email_prescr","Fonction_CSS","Tel_prescr","Date_demande","Thematique","Nom_association","Freins_identifies","Objectif_1","Objectif_2","Objectif_3","Commentaires_prescr","Motif","Nom_prenom_asso","Email_asso","Fonction_asso","Tel_asso","Date_demarrage_accomp","Date_fin_accomp","Nb_heures_prevues","Nb_heures_realisees","Eval_1","Eval_2","Eval_3","Commentaires_asso","annee_fiche_modele"]
[{"$f":"Orientation!B11","v":0},{"$f":"Orientation!B13","v":0},{"$f":"Orientation!B15","v":0},{"$f":"Orientation!B17","v":"00:00:00"},{"$f":"Orientation!E11","v":0},{"$f":"Orientation!E17","v":0},{"$f":"Orientation!E15","v":0},{"$f":"Orientation!E13","v":0},{"$f":"Orientation!B22","v":0},{"$f":"Orientation!E22","v":0},{"$f":"Orientation!B25","v":0},{"$f":"Orientation!E25","v":0},{"$f":"Orientation!B28","v":0},{"$f":"Orientation!B30","v":0},{"$f":"Orientation!E30","v":0},{"$f":"Orientation!B32","v":0},{"$f":"Orientation!E28","v":0},{"$f":"Orientation!B36","v":"00:00:00"},{"$f":"Orientation!E36","v":0},{"$f":"Orientation!E38","v":0},{"$f":"Orientation!B41","v":0},{"$f":"Orientation!B47","v":0},{"$f":"Orientation!B50","v":0},{"$f":"Orientation!B53","v":0},{"$f":"Orientation!B56","v":0},{"$f":"Bilan!D32","v":0},{"$f":"Bilan!B26","v":0},{"$f":"Bilan!B28","v":0},{"$f":"Bilan!D26","v":0},{"$f":"Bilan!D28","v":0},{"$f":"Bilan!B36","v":"00:00:00"},{"$f":"Bilan!D36","v":"00:00:00"},{"$f":"Bilan!B38","v":0},{"$f":"Bilan!D38","v":0},{"$f":"Bilan!D42","v":0},{"$f":"Bilan!D45","v":0},{"$f":"Bilan!D48","v":0},{"$f":"Bilan!A52","v":0},{"$f":"Orientation!E7","v":2024}]

{"sheet":"Menu","index":3,"n_rows":57,"n_cols":13,"rows_kept":57,"cut":false,"hidden":true,"merged":[]}
["Civilité","RSA","Affecté sur la CSS de","Site CSS","Fonction","Thématique","Nom de l'association","Ville","evaluation","motif non prise en charge","Prescripteur autre","ALI- territoire","Porteur ALI"]
["Monsieur","Oui","Aubervilliers","Clichy","AS","Accès_aux_droits","UNRPA_75","AUBERVILLIERS","Tout à fait atteint","action / dispositif complet","Agence locale d'insertion (ALI)","Aubervilliers","ARES"]
["Madame","Non","Aulnay_sous_bois","Montfermeil_Coubron","CESF","Culture_séjour_et_sports","Association_de_conseil_et_d_insertion_ACI","AULNAY-SOUS-BOIS","Plutôt atteint","usager injoignable","UNRPA_75","Aulnay sous bois ","Vitamine T"]
[null,"En cours","Bagnolet","Dugny_Le_Bourget","CISP","Renforcement_de_l_estime_de_soi","Grdr_Migration_Citoyenneté_Développement ","BAGNOLET","Plutôt pas atteint","absence d'adhésion","2M_Solidaire ","Bagnolet-Le pré-Les Lillas","ARES"]
[null,null,"Bobigny","Le_Blanc_Mesnil","EAN","Santé_santé_psy","82_4000_Solidaires","LE BLANC-MESNIL","Pas du tout atteint","indisponible pour l'action","82_4000_Solidaires","Bobigny","Croix rouge insertion"]
[null,null,"Bondy","Epinay_sur_Seine","AA","Accompagnement_socio_professionnel","ESS_ESPERANCE_SPORTIVE_DE_STAINS_TENNIS","BOBIGNY",null,"autre (précisez en commentaire en fin de page)","ABAJAD","Bondy","Croix rouge insertion"]
[null,null,"Clichy_Montfermeil_Coubron","Villetaneuse",null,"Vie_quotidienne","Etonnant_cinéma","BONDY",null,null,"AFAD","Clichy sous bois / Coubron/Montfermeil","GPGE"]
[null,null,"Drancy","Livry_Gargan_Vaujours",null,null,"FSGT_93 ","LE BOURGET",null,null,"AFPAD","Drancy","Vitamine T"]
[null,null,"Dugny_Le_Bourget_Le_Blanc_Mesnil","Pavillons",null,null,"2M_Solidaire ","CLICHY-SOUS-BOIS",null,null,"AFRICA","Dugny/Le Bourget/ Le Blanc Ménil","CASP"]
[null,null,"Epinay_sur_Seine_Villetaneuse","Villemomble_Le_Raincy",null,null,"AFRICA","COUBRON",null,null,"ARES_SERVICE","Epinay sur Seine / Villetaneuse","SFMAD"]
[null,null,"Neuilly_Plaisance_Neuilly_sur_Marne_Gagny ","Rosny",null,null,"Emmaus_Solidarité","LA COURNEUVE",null,null,"ARTIS_Multimédia","Neuilly-Plaisance / Neuilly sur Marne/ Gagny ","Germinal/Groupe SOS"]
[null,null,"La_Courneuve","Pierrefitte",null,null,"FRANCE_BENEVOLAT_93","DRANCY",null,null,"Association_de_conseil_et_d_insertion_ACI","La courneuve","C2DI"]
[null,null,"Les_Lilas_Le_Pré","Stains",null,null,"Groupe_SOS_Solidarités_CAARUD Yucca","DUGNY",null,null,"Chargé_ASLL","Bagnolet-Le pré-Les Lillas","ARES"]
[null,null,"Livry_Gargan_Vaujours_Pavillons","Romainville",null,null,"Joséphine ","EPINAY-SUR-SEINE",null,null,"CISP_ASE","Livry-Gargan/ Pavillons/ Vaujours ","Aurore"]
[null,null,"Montreuil","Noisy_le_Sec",null,null,"LA_CONTREMARQUE","GAGNY",null,null,"CMP","Montreuil","Aurore"]
[null,null,"Noisy_le_Grand_Gournay_sur_Marne","Saint_Ouen",null,null,"Noisy_Liens","GOURNAY-SUR-MARNE",null,null,"Compagnons_Bâtisseurs_IDF","Noisy le Grand / Gournay sur Marne ","Germinal/Groupe SOS"]
[null,null,"Pantin","Ile_Saint_Denis",null,null,"Passerelle_pour_l_Intégration_et_l_Insertion ","L'ILE-SAINT-DENIS",null,null,"CONSEIL_CINQ_SUR_CINQ","Pantin","GIP Ville de Pantin"]
[null,null,"Pierrefitte_Stains","Tremblay_en_France",null,null,"Sens_de_l_Humus","LES LILAS",null,null,"Crésus","Pierrefitte/Stains","PLIE de Plaine Commune"]
[null,null,"Romainville_Noisy_le_Sec","Villepinte",null,null,"shakti","LIVRY-GARGAN",null,null,"Dans_ma_petite_cuisine","Romainville / Noisy-le-Sec","Ville de Romainville/CCAS Noisy-le-Sec"]
[null,null,"Saint_Denis","Aubervilliers",null,null,"EPOC","MONTFERMEIL",null,null,"Du_Pain_&_des_roses ","Saint-Denis","Objectif emploi"]
[null,null,"Saint_Ouen_Ile_Saint_Denis","Aulnay_sous_bois",null,null,"LE_CABINET_ASSOCIATIF ","MONTREUIL",null,null,"ECHO_DES_SANS_MOT","Saint-Ouen/Ile Saint Denis","ARES"]
[null,null,"Sevran","Bagnolet",null,null,"SAMPS","NEUILLY-PLAISANCE",null,null,"Emmaus_Solidarité","Sevran ","Compétances Emploi"]
[null,null,"Tremblay_en_France_Villepinte","Bobigny",null,null,"Soutien_Insertion_Santé","NEUILLY-SUR-MARNE",null,null,"EPOC","Tremblay en France / Villepinte","Vitamine T"]
[null,null,"Villemomble_Le_Raincy_Rosny","Bondy",null,null,"UNIRH75","NOISY-LE-GRAND",null,null,"Espaces","Villemomble/ Le Raincy / Rosny","Aurore"]
[null,null,"CSSAPE","Drancy",null,null,"ABAJAD","NOISY-LE-SEC",null,null,"ESS_ESPERANCE_SPORTIVE_DE_STAINS_TENNIS"]
[null,null,null,"Neuilly_Plaisance_Neuilly_sur_Marne_Gagny ",null,null,"AFPAD","PANTIN",null,null,"Etonnant_cinéma"]
[null,null,null,"La_Courneuve",null,null,"ARES_SERVICE","PAVILLONS-SOUS-BOIS",null,null,"FRANCE_BENEVOLAT_93"]
[null,null,null,"Les_Lilas_Le_Pré",null,null,"ARTIS_Multimédia","PIERREFITTE",null,null,"FSGT_93 "]
[null,null,null,"Montreuil",null,null,"CONSEIL_CINQ_SUR_CINQ","LE PRE-SAINT-GERVAIS",null,null,"Grdr_Migration_Citoyenneté_Développement "]
[null,null,null,"Noisy_le_Grand_Gournay_sur_Marne",null,null,"Du_Pain_&_des_roses ","LE RAINCY",null,null,"Groupe_SOS_Solidarités_CAARUD Yucca"]
[null,null,null,"Pantin",null,null,"ECHO_DES_SANS_MOT","ROMAINVILLE",null,null,"Home_association"]
[null,null,null,"Saint_Denis",null,null,"Espaces","ROSNY-SOUS-BOIS",null,null,"IRI"]
[null,null,null,"Sevran",null,null,"Home_association","SAINT-DENIS",null,null,"Joséphine "]
[null,null,null,"CSSAPE",null,null,"La_Cravate_Solidaire_Paris","SAINT-OUEN",null,null,"LA_CONTREMARQUE"]
[null,null,null,null,null,null,"LA_FABRIK","SEVRAN",null,null,"La_Cravate_Solidaire_Paris"]
[null,null,null,null,null,null,"Les_Cités_d_Or","STAINS",null,null,"LA_FABRIK"]
[null,null,null,null,null,null,"LES_TANTINES","TREMBLAY-EN-FRANCE",null,null,"LE_CABINET_ASSOCIATIF "]
[null,null,null,null,null,null,"MAKING_WAVES","VAUJOURS",null,null,"Les_Cités_d_Or"]
[null,null,null,null,null,null,"MAKING_WAVES_Action_Co","VILLEMOMBLE",null,null,"LES_TANTINES"]
[null,null,null,null,null,null,"METISHIMA","VILLEPINTE",null,null,"MAKING_WAVES"]
[null,null,null,null,null,null,"NOUVEL_HORIZON","VILLETANEUSE",null,null,"MAKING_WAVES_Action_Co"]
[null,null,null,null,null,null,"ORPHANCO","PARIS",null,null,"METISHIMA"]
[null,null,null,null,null,null,"Partenaires_Pour_la_Ville_93_PPV93","HAUTS-DE-SEINE (92)",null,null,"Noisy_Liens"]
[null,null,null,null,null,null,"Synergie_Family","VAL-DE-MARNE (94)",null,null,"NOUVEL_HORIZON"]
[null,null,null,null,null,null,"TRACES","SEINE-ET-MARNE (77)",null,null,"ORPHANCO"]
[null,null,null,null,null,null,"Vivre_Ensemble","YVELINES (78)",null,null,"Partenaires_Pour_la_Ville_93_PPV93"]
[null,null,null,null,null,null,"AFAD","ESSONNE (91)",null,null,"Passerelle_pour_l_Intégration_et_l_Insertion "]
[null,null,null,null,null,null,"CMP","VAL D'OISE (95)",null,null,"PETITE_RUCHE_antenne_solidaire_du_CCAS"]
[null,null,null,null,null,null,"Compagnons_Bâtisseurs_IDF",null,null,null,"SAMPS"]
[null,null,null,null,null,null,"Crésus",null,null,null,"Sens_de_l_Humus"]
[null,null,null,null,null,null,"Dans_ma_petite_cuisine",null,null,null,"shakti"]
[null,null,null,null,null,null,"IRI",null,null,null,"Soutien_Insertion_Santé"]
[null,null,null,null,null,null,"PETITE_RUCHE_antenne_solidaire_du_CCAS",null,null,null,"Synergie_Family"]
[null,null,null,null,null,null,null,null,null,null,"TRACES"]
[null,null,null,null,null,null,null,null,null,null,"UNIRH75"]
[null,null,null,null,null,null,null,null,null,null,"Vivre_Ensemble"]
[null,null,null,null,null,null,null,null,null,null,"Pôle Emploi"]